[Event "Turkish Super League 2019"]
[Site "Konya"]
[Date "2019.07.18"]
[Round "2"]
[White "Ayan, Bengu Sena"]
[Black "Tezcan, Emre"]
[Result "1/2-1/2"]
[ECO "E08"]
[WhiteElo "1885"]
[BlackElo "2082"]
[Annotator "NA"]
[PlyCount "176"]
[EventDate "2019.07.17"]
[EventType "team-tourn"]
[EventCountry "TUR"]
[SourceTitle "playchess.com"]
[Source "ChessBase"]
[SourceQuality "1"]
[TimeControl "40/5400+30:1800+30"]

1. d4 Nf6 2. c4 e6 3. Nf3 d5 4. g3 Be7 5. Bg2 O-O 6. O-O Nbd7 7. Qc2 Ne4 8. Nc3 Nxc3 9. Qxc3 Nf6 10. Nd2 Bd7 11. e4 dxe4 12. Nxe4 Bc6 13. Qd3 Nxe4 14. Bxe4 Bxe4 15. Qxe4 c6 16. Rd1 Qd7 17. Be3 Rfd8 18. Rd2 Qc7 19. Rad1 Bf6 20. Bf4 Qa5 21. a3 Qa4 22. Qe2 Qb3 23. Be5 Be7 24. Rc1 Rd7 25. Rc3 Qb6 26. Qg4 g6 27. Rcd3 Rad8 28. h4 Bf8 29. Bf6 Re8 30. h5 Bg7 31. Qh4 Bxf6 32. Qxf6 Qd8 33. Qe5 f6 34. Qe2 Kf7 35. Qf3 Qa5 36. hxg6+ hxg6 37. d5 {[%emt 1:46:52]} exd5 {[%emt 1:39:27]} 38. cxd5 {[%emt 0:00:30]} cxd5 {[%emt 0:00:30]} 39. Rxd5 {[%emt 0:00:30]} Rxd5 {[%emt 0:00:30]} 40. Rxd5 {[%emt 0:00:30]} Qe1+ {[%emt 0:00:30]} 41. Kg2 {[%emt 0:30:30]} Rh8 {[%emt 0:30:30]} 42. Rd7+ {[%emt 0:00:30]} Ke8 {[%emt 0:00:30]} 43. Rd8+ {[%emt 0:00:30]} Kxd8 {[%emt 0:00:30]} 44. Qxf6+ {[%emt 0:00:30]} Kc7 {[%emt 0:00:30]} 45. Qxh8 {[%emt 0:00:30]} Qe4+ {[%emt 0:00:30]} 46. Kh2 {[%emt 0:00:00]} Kb6 {[%emt 0:00:00]} 47. Qf6+ {[%emt 0:00:00]} Ka5 {[%emt 0:00:00]} 48. Qd8+ {[%emt 0:00:00]} b6 {[%emt 0:00:00]} 49. Qd7 {[%emt 0:00:00]} Ka6 {[%emt 0:00:00]} 50. Qc8+ {[%emt 0:00:00]} Kb5 {[%emt 0:00:00]} 51. Qd7+ {[%emt 0:00:00]} Ka6 {[%emt 0:00:00]} 52. Qd2 {[%emt 0:00:00]} Kb5 {[%emt 0:00:00]} 53. Qe3 {[%emt 0:00:00]} Qc2 {[%emt 0:00:00]} 54. Qd4 {[%emt 0:00:00]} a5 {[%emt 0:00:00]} 55. Kh3 {[%emt 0:00:00]} Qe2 {[%emt 0:00:00]} 56. Kg2 {[%emt 0:03:06]} g5 {[%emt 0:00:00]} 57. a4+ {[%emt 0:01:27]} Kc6 {[%emt 0:00:00]} 58. Qf6+ {[%emt 0:00:51]} Kc7 {[%emt 0:00:00]} 59. Qf7+ {[%emt 0:01:28]} Kd6 {[%emt 0:00:00]} 60. Qf6+ {[%emt 0:00:17]} Kc7 {[%emt 0:00:00]} 61. Qxg5 {[%emt 0:01:05]} Qxb2 {[%emt 0:00:00]} 62. Qf4+ {[%emt 0:00:26]} Kc6 {[%emt 0:00:12]} 63. Qc4+ {[%emt 0:00:44]} Kd6 {[%emt 0:00:12]} 64. g4 {[%emt 0:01:18]} Qb4 {[%emt 0:00:07]} 65. Qd3+ {[%emt 0:00:00]} Kc7 {[%emt 0:03:16]} 66. Qc2+ {[%emt 0:00:20]} Kb7 {[%emt 0:00:19]} 67. f3 {[%emt 0:00:21]} b5 {[%emt 0:00:31]} 68. axb5 {[%emt 0:00:30]} Qxb5 {[%emt 0:00:05]} 69. Qe4+ {[%emt 0:00:40]} Qc6 {[%emt 0:00:48]} 70. Qe7+ {[%emt 0:00:08]} Qc7 {[%emt 0:00:16]} 71. Qe4+ {[%emt 0:01:05]} Qc6 {[%emt 0:00:01]} 72. Qh7+ {[%emt 0:00:36]} Qc7 {[%emt 0:00:12]} 73. Qf5 {[%emt 0:00:21]} Kb6 {[%emt 0:01:36]} 74. g5 {[%emt 0:00:31]} a4 {[%emt 0:00:19]} 75. Qf6+ {[%emt 0:00:20]} Qc6 {[%emt 0:01:27]} 76. Qd4+ {[%emt 0:00:42]} Qc5 {[%emt 0:00:50]} 77. Qxa4 {[%emt 0:00:39]} Qxg5+ {[%emt 0:00:04]} 78. Kf2 {[%emt 0:00:14]} Kc7 {[%emt 0:01:04]} 79. Qd4 {[%emt 0:00:21]} Kc6 {[%emt 0:01:27]} 80. f4 {[%emt 0:00:16]} Qh4+ {[%emt 0:01:24]} 81. Kf3 {[%emt 0:00:15]} Qh3+ {[%emt 0:01:32]} 82. Ke4 {[%emt 0:00:19]} Qh7+ {[%emt 0:00:30]} 83. f5 {[%emt 0:00:37]} Qh4+ {[%emt 0:00:24]} 84. Ke5 {[%emt 0:00:24]} Qxd4+ {[%emt 0:00:07]} 85. Kxd4 {[%emt 0:00:07]} Kd6 {[%emt 0:00:01]} 86. Ke4 {[%emt 0:00:41]} Ke7 {[%emt 0:00:01]} 87. Ke5 {[%emt 0:00:07]} Kf7 {[%emt 0:00:01]} 88. f6 {[%emt 0:00:09]} Kf8 {[%emt 0:00:02]} 1/2-1/2

[Event "Turkish Super League 2019"]
[Site "Konya"]
[Date "2019.07.19"]
[Round "3"]
[White "Heberla, Bartlomiej"]
[Black "Arat, Ufuk Sezen"]
[Result "1-0"]
[ECO "C42"]
[WhiteElo "2534"]
[BlackElo "2376"]
[Annotator "ChessBase"]
[PlyCount "69"]
[EventDate "2019.07.17"]
[EventType "team-tourn"]
[EventCountry "TUR"]
[SourceTitle "playchess.com"]
[Source "ChessBase"]
[SourceQuality "1"]
[TimeControl "40/5400+30:1800+30"]

1. e4 {[%emt 0:18:30]} e5 {[%emt 0:32:30]} 2. Nf3 {[%emt 0:00:30]} Nf6 {[%emt 0:00:30]} 3. Nxe5 {[%emt 0:00:30]} d6 {[%emt 0:00:30]} 4. Nd3 {[%emt 0:00:30]} Nxe4 {[%emt 0:00:30]} 5. Qe2 {[%emt 0:00:30]} Qe7 {[%emt 0:00:30]} 6. Nf4 {[%emt 0:00:30]} c6 {[%emt 0:00:30]} 7. c4 {[%emt 0:00:30]} Na6 {[%emt 0:00:30]} 8. d4 {[%emt 0:00:30]} Nb4 {[%emt 0:00:30]} 9. a3 {[%emt 0:00:30]} Na6 {[%emt 0:00:30]} 10. Be3 {[%emt 0:00:30]} g6 {[%emt 0:00:30]} 11. f3 {[%emt 0:04:30]} Nf6 {[%emt 0:07:30]} 12. Qf2 {[%emt 0:15:30]} Bh6 {[%emt 0:07:30]} 13. Kd2 {[%emt 0:19:30]} O-O {[%emt 0:04:30]} 14. Nc3 {[%emt 0:00:30]} d5 {[%emt 0:15:30]} 15. Nfxd5 {[%emt 0:03:30]} Bxe3+ {[%emt 0:01:30]} 16. Qxe3 {[%emt 0:00:30]} Qd8 {[%emt 0:04:58]} 17. Nxf6+ {[%emt 0:08:30]} Qxf6 {[%emt 0:00:06]} 18. Rd1 {[%emt 0:00:00]} Bf5 {[%emt 0:05:02]} 19. g4 {[%emt 0:03:00]} Rfe8 {[%emt 0:04:46]} 20. Qf4 {[%emt 0:02:41]} Qh4 {[%emt 0:00:01]} 21. Kc1 {[%emt 0:00:47]} Rad8 {[%emt 0:00:32]} 22. c5 {[%emt 0:05:56]} Nb8 {[%emt 0:07:22]} 23. Bc4 {[%emt 0:00:50]} Nd7 {[%emt 0:00:28]} 24. Ne4 {[%emt 0:05:27]} Be6 {[%emt 0:01:29]} 25. Bxe6 {[%emt 0:00:04]} Rxe6 {[%emt 0:00:08]} 26. d5 {[%emt 0:00:04]} cxd5 {[%emt 0:00:13]} 27. Rxd5 {[%emt 0:00:07]} Nf8 {[%emt 0:01:12]} 28. Rxd8 {[%emt 0:01:56]} Qxd8 {[%emt 0:00:33]} 29. Rd1 {[%emt 0:00:04]} Qe7 {[%emt 0:00:31]} 30. g5 {[%emt 0:00:54]} Re5 {[%emt 0:01:10]} 31. Kb1 {[%emt 0:00:40]} Rf5 {[%emt 0:00:49]} 32. Qd6 {[%emt 0:02:48]} Re5 {[%emt 0:00:26]} 33. Qd4 {[%emt 0:00:59]} Rf5 {[%emt 0:02:29]} 34. Nf6+ {[%emt 0:00:39]} Kh8 {[%emt 0:00:02]} 35. Ng4+ {[%emt 0:00:00]} 1-0

[Event "Turkish Super League 2019"]
[Site "Konya"]
[Date "2019.07.19"]
[Round "3"]
[White "Rasulov, Vugar"]
[Black "Mchedlishvili, Mikheil"]
[Result "0-1"]
[ECO "D80"]
[WhiteElo "2534"]
[BlackElo "2571"]
[Annotator "ChessBase"]
[PlyCount "120"]
[EventDate "2019.07.17"]
[EventType "team-tourn"]
[EventCountry "TUR"]
[SourceTitle "playchess.com"]
[Source "ChessBase"]
[SourceQuality "1"]
[TimeControl "40/5400+30:1800+30"]

1. d4 Nf6 2. c4 g6 3. Nc3 d5 4. Bg5 Ne4 5. Bh4 Nxc3 6. bxc3 dxc4 7. e3 Be6 8. Qb1 c5 9. Nf3 Qa5 10. Qb2 Bg7 11. Be2 cxd4 12. exd4 Bd5 13. O-O Nd7 14. a4 e6 15. Nd2 Rc8 16. Rfc1 O-O 17. Nf1 e5 18. Ne3 exd4 19. cxd4 c3 20. Qb5 Qxb5 21. axb5 Be4 22. Nc4 Ra8 23. Bg3 g5 24. Kf1 Nb6 25. Nd6 Bg6 26. Be5 c2 27. Bf3 Bd3+ 28. Be2 Bg6 29. Bf3 Bxe5 30. dxe5 Nd7 31. Bxb7 Bd3+ 32. Kg1 Rad8 33. Ne4 h6 34. h4 Nxe5 35. hxg5 hxg5 36. Nxg5 Rd7 37. Bc6 Nxc6 38. bxc6 Rc7 39. Nf3 Rd8 40. Ne5 Bh7 41. Kh2 Rd5 42. f4 a5 43. Ra2 Kg7 44. Raxc2 Bxc2 45. Rxc2 f6 46. Nf3 Kf7 47. Rc4 {[%emt 2:07:20]} Rb5 {[%emt 2:08:32]} 48. Kg3 {[%emt 0:00:30]} Rb4 {[%emt 0:00:30]} 49. Rc5 {[%emt 0:00:30]} a4 {[%emt 0:00:22]} 50. Nd2 {[%emt 0:02:07]} Ke6 {[%emt 0:02:37]} 51. Nc4 {[%emt 0:00:04]} a3 {[%emt 0:01:04]} 52. f5+ {[%emt 0:00:01]} Ke7 {[%emt 0:03:00]} 53. Ne3 {[%emt 0:00:05]} Ra4 {[%emt 0:01:54]} 54. Rc1 {[%emt 0:00:36]} Ra5 {[%emt 0:01:49]} 55. Nc4 {[%emt 0:00:05]} Ra6 {[%emt 0:00:59]} 56. Re1+ {[%emt 0:00:09]} Kf8 {[%emt 0:00:39]} 57. Nd6 {[%emt 0:00:40]} a2 {[%emt 0:00:38]} 58. Re8+ {[%emt 0:01:07]} Kg7 {[%emt 0:00:30]} 59. Re1 {[%emt 0:00:00]} Rcxc6 {[%emt 0:02:18]} 60. Re7+ {[%emt 0:00:00]} Kh6 {[%emt 0:00:25]} 0-1

[Event "Turkish Super League 2019"]
[Site "Konya"]
[Date "2019.07.19"]
[Round "3"]
[White "Ali Marandi, Cemil Can"]
[Black "Ozer, Omer Faruk"]
[Result "1-0"]
[ECO "A45"]
[WhiteElo "2527"]
[BlackElo "2369"]
[Annotator "ChessBase"]
[PlyCount "81"]
[EventDate "2019.07.17"]
[EventType "team-tourn"]
[EventCountry "TUR"]
[SourceTitle "playchess.com"]
[Source "ChessBase"]
[SourceQuality "1"]
[TimeControl "40/5400+30:1800+30"]

1. d4 {[%emt 0:09:30]} Nf6 {[%emt 0:37:30]} 2. Bg5 {[%emt 0:00:30]} Ne4 {[%emt 0:00:30]} 3. h4 {[%emt 0:00:30]} d5 {[%emt 0:00:30]} 4. Nd2 {[%emt 0:00:30]} Bf5 {[%emt 0:00:30]} 5. Nxe4 {[%emt 0:00:30]} Bxe4 {[%emt 0:00:30]} 6. f3 {[%emt 0:00:30]} h6 {[%emt 0:00:30]} 7. Bf4 {[%emt 0:00:30]} Bh7 {[%emt 0:00:30]} 8. e3 {[%emt 0:00:30]} e6 {[%emt 0:00:30]} 9. Bd3 {[%emt 0:00:30]} Bxd3 {[%emt 0:00:30]} 10. Qxd3 {[%emt 0:00:30]} Nc6 {[%emt 0:00:30]} 11. O-O-O {[%emt 0:00:30]} Qd7 {[%emt 0:00:30]} 12. Kb1 {[%emt 0:00:30]} Bd6 {[%emt 0:00:30]} 13. Ne2 {[%emt 0:00:30]} O-O-O {[%emt 0:00:30]} 14. Bxd6 {[%emt 0:00:30]} cxd6 {[%emt 0:09:30]} 15. e4 {[%emt 0:02:30]} Kb8 {[%emt 0:02:30]} 16. Nc3 {[%emt 0:07:30]} dxe4 {[%emt 0:00:30]} 17. fxe4 {[%emt 0:05:30]} g6 {[%emt 0:07:30]} 18. Rhf1 {[%emt 0:05:30]} Qe7 {[%emt 0:15:30]} 19. Qg3 {[%emt 0:05:30]} a6 {[%emt 0:00:30]} 20. Qf2 {[%emt 0:03:30]} f5 {[%emt 0:03:32]} 21. d5 {[%emt 0:02:30]} Ne5 {[%emt 0:01:20]} 22. dxe6 {[%emt 0:02:30]} fxe4 {[%emt 0:07:21]} 23. Qf6 {[%emt 0:00:30]} Rhe8 {[%emt 0:01:27]} 24. Qxe7 {[%emt 0:01:30]} Rxe7 {[%emt 0:00:30]} 25. Rf6 {[%emt 0:00:30]} Rde8 {[%emt 0:00:30]} 26. Nxe4 {[%emt 0:04:30]} Rxe6 {[%emt 0:01:34]} 27. Rxe6 {[%emt 0:01:30]} Rxe6 {[%emt 0:00:01]} 28. Nxd6 {[%emt 0:01:30]} Ng4 {[%emt 0:00:45]} 29. Nc4 {[%emt 0:00:30]} Re2 {[%emt 0:02:11]} 30. g3 {[%emt 0:02:30]} Nf2 {[%emt 0:04:02]} 31. Rf1 {[%emt 0:01:30]} Ne4 {[%emt 0:00:21]} 32. a4 {[%emt 0:00:30]} b5 {[%emt 0:01:08]} 33. axb5 {[%emt 0:00:30]} axb5 {[%emt 0:00:02]} 34. Rf8+ {[%emt 0:00:30]} Kc7 {[%emt 0:01:10]} 35. Na3 {[%emt 0:01:30]} b4 {[%emt 0:00:41]} 36. Nb5+ {[%emt 0:00:30]} Kb6 {[%emt 0:00:46]} 37. Nd4 {[%emt 0:02:30]} Rg2 {[%emt 0:00:39]} 38. Rb8+ {[%emt 0:00:30]} Kc5 {[%emt 0:00:29]} 39. Nb3+ {[%emt 0:00:30]} Kc4 {[%emt 0:00:38]} 40. Re8 {[%emt 0:00:00]} Nxg3 {[%emt 0:00:00]} 41. Re5 {[%emt 0:03:00]} 1-0

[Event "Turkish Super League 2019"]
[Site "Konya"]
[Date "2019.07.19"]
[Round "3"]
[White "Visakh N R"]
[Black "Esen, Baris"]
[Result "1/2-1/2"]
[ECO "B53"]
[WhiteElo "2526"]
[BlackElo "2478"]
[Annotator "ChessBase"]
[PlyCount "118"]
[EventDate "2019.07.17"]
[EventType "team-tourn"]
[EventCountry "TUR"]
[SourceTitle "playchess.com"]
[Source "ChessBase"]
[SourceQuality "1"]
[TimeControl "40/5400+30:1800+30"]

1. e4 c5 2. Nf3 d6 3. d4 cxd4 4. Qxd4 a6 5. c4 Nc6 6. Qe3 g6 7. h3 Bg7 8. Be2 Nf6 9. O-O Nd7 10. Nc3 O-O 11. Rb1 b6 12. b3 Bb7 13. Bb2 Rb8 14. Rfd1 Ba8 15. Ba1 Re8 16. Rd2 Nce5 17. Nh2 Qc8 18. f4 Nc6 19. Bg4 Qb7 20. Bxd7 Qxd7 21. Nd5 f6 22. Nxb6 Qa7 23. Nd5 Qxe3+ 24. Nxe3 Na5 25. e5 dxe5 26. fxe5 fxe5 27. Re1 Nc6 28. Nd5 Nd4 29. Nc7 Red8 30. Nxa6 Rbc8 31. Nb4 e4 32. Rf2 Bh6 33. Nf1 Bg5 34. Nd5 Bxd5 35. Bxd4 Bxc4 36. Be3 Bh4 37. bxc4 Bxf2+ 38. Bxf2 Rxc4 39. Ne3 Ra4 40. Re2 Rda8 41. Nd5 Rxa2 42. Rxe4 Rd2 43. Nxe7+ Kf7 44. Nc6 Raa2 45. Ne5+ Kg8 46. Rf4 Rd8 {[%emt 2:13:25]} 47. Ng4 {[%emt 2:03:30]} h5 {[%emt 0:00:30]} 48. Nf6+ {[%emt 0:00:30]} Kg7 {[%emt 0:00:24]} 49. Kh2 {[%emt 0:00:42]} Ra6 {[%emt 0:02:39]} 50. Bd4 {[%emt 0:02:58]} Kh6 {[%emt 0:00:20]} 51. Bc5 {[%emt 0:01:51]} Re6 {[%emt 0:02:07]} 52. Rf2 {[%emt 0:09:06]} Kg7 {[%emt 0:02:03]} 53. Ba3 {[%emt 0:00:24]} Rxf6 {[%emt 0:00:58]} 54. Bb2 {[%emt 0:00:02]} Rdd6 {[%emt 0:00:00]} 55. Kg3 {[%emt 0:00:24]} g5 {[%emt 0:01:22]} 56. h4 {[%emt 0:00:31]} Kg6 {[%emt 0:00:10]} 57. Rxf6+ {[%emt 0:00:33]} Rxf6 {[%emt 0:00:30]} 58. Bxf6 {[%emt 0:00:00]} Kxf6 {[%emt 0:00:09]} 59. hxg5+ {[%emt 0:00:03]} Kxg5 {[%emt 0:00:06]} 1/2-1/2

[Event "Turkish Super League 2019"]
[Site "Konya"]
[Date "2019.07.19"]
[Round "3"]
[White "Asadli, Vugar"]
[Black "Can, Emre"]
[Result "1/2-1/2"]
[ECO "B97"]
[WhiteElo "2502"]
[BlackElo "2595"]
[Annotator "ChessBase"]
[PlyCount "67"]
[EventDate "2019.07.17"]
[EventType "team-tourn"]
[EventCountry "TUR"]
[SourceTitle "playchess.com"]
[Source "ChessBase"]
[SourceQuality "1"]
[TimeControl "40/5400+30:1800+30"]

1. e4 {[%emt 0:21:30]} c5 {[%emt 0:22:30]} 2. Nf3 {[%emt 0:00:30]} d6 {[%emt 0:00:30]} 3. d4 {[%emt 0:00:30]} cxd4 {[%emt 0:00:30]} 4. Nxd4 {[%emt 0:00:30]} Nf6 {[%emt 0:00:30]} 5. Nc3 {[%emt 0:00:30]} a6 {[%emt 0:00:30]} 6. Bg5 {[%emt 0:00:30]} e6 {[%emt 0:00:30]} 7. f4 {[%emt 0:00:30]} Qb6 {[%emt 0:00:30]} 8. Qd3 {[%emt 0:00:30]} Qxb2 {[%emt 0:00:30]} 9. Rb1 {[%emt 0:00:30]} Qa3 {[%emt 0:00:30]} 10. f5 {[%emt 0:00:30]} Qa5 {[%emt 0:00:30]} 11. Be2 {[%emt 0:00:30]} Nc6 {[%emt 0:00:30]} 12. Bxf6 {[%emt 0:00:30]} gxf6 {[%emt 0:00:30]} 13. fxe6 {[%emt 0:00:30]} fxe6 {[%emt 0:00:30]} 14. Nxc6 {[%emt 0:00:30]} bxc6 {[%emt 0:00:30]} 15. O-O {[%emt 0:00:30]} Be7 {[%emt 0:00:30]} 16. Bg4 {[%emt 0:00:30]} O-O {[%emt 0:00:30]} 17. Kh1 {[%emt 0:00:30]} Kh8 {[%emt 0:07:30]} 18. Ne2 {[%emt 0:06:30]} f5 {[%emt 0:07:30]} 19. exf5 {[%emt 0:00:30]} exf5 {[%emt 0:00:30]} 20. Bf3 {[%emt 0:12:30]} Qc5 {[%emt 0:09:30]} 21. Nd4 {[%emt 0:03:30]} Bf6 {[%emt 0:00:30]} 22. Rfd1 {[%emt 0:03:30]} Bxd4 {[%emt 0:09:30]} 23. Qxd4+ {[%emt 0:00:00]} Qxd4 {[%emt 0:00:30]} 24. Rxd4 {[%emt 0:00:00]} Be6 {[%emt 0:02:30]} 25. Rxd6 {[%emt 0:04:30]} Bxa2 {[%emt 0:00:30]} 26. Ra1 {[%emt 0:01:30]} Bc4 {[%emt 0:00:30]} 27. Kg1 {[%emt 0:00:30]} Kg7 {[%emt 0:02:30]} 28. Rd4 {[%emt 0:00:30]} Be6 {[%emt 0:03:30]} 29. Rd6 {[%emt 0:01:30]} Bc4 {[%emt 0:01:30]} 30. Rd4 {[%emt 0:00:00]} Be6 {[%emt 0:00:30]} 31. Bxc6 {[%emt 0:04:00]} Ra7 {[%emt 0:00:30]} 32. Rd6 {[%emt 0:01:30]} Rf6 {[%emt 0:01:30]} 33. Bb5 {[%emt 0:02:30]} Bc8 {[%emt 0:02:30]} 34. Rd8 {[%emt 0:00:30]} 1/2-1/2

[Event "Turkish Super League 2019"]
[Site "Konya"]
[Date "2019.07.19"]
[Round "3"]
[White "Benidze, Davit"]
[Black "Dastan, Muhammed Batuhan"]
[Result "1/2-1/2"]
[ECO "A07"]
[WhiteElo "2469"]
[BlackElo "2565"]
[Annotator "ChessBase"]
[PlyCount "65"]
[EventDate "2019.07.17"]
[EventType "team-tourn"]
[EventCountry "TUR"]
[SourceTitle "playchess.com"]
[Source "ChessBase"]
[SourceQuality "1"]
[TimeControl "40/5400+30:1800+30"]

1. g3 {[%emt 0:05:30]} g6 {[%emt 0:44:30]} 2. Bg2 {[%emt 0:00:30]} Bg7 {[%emt 0:00:30]} 3. Nf3 {[%emt 0:00:30]} d5 {[%emt 0:00:30]} 4. O-O {[%emt 0:00:30]} e5 {[%emt 0:00:30]} 5. d3 {[%emt 0:00:30]} Nc6 {[%emt 0:00:30]} 6. e4 {[%emt 0:01:30]} dxe4 {[%emt 0:00:30]} 7. dxe4 {[%emt 0:00:30]} Qxd1 {[%emt 0:00:30]} 8. Rxd1 {[%emt 0:00:30]} Bg4 {[%emt 0:00:30]} 9. c3 {[%emt 0:00:30]} Nf6 {[%emt 0:00:30]} 10. h3 {[%emt 0:00:30]} Be6 {[%emt 0:00:30]} 11. Ng5 {[%emt 0:00:30]} Bd7 {[%emt 0:00:30]} 12. Nd2 {[%emt 0:00:30]} h6 {[%emt 0:00:30]} 13. Ngf3 {[%emt 0:00:30]} Be6 {[%emt 0:00:30]} 14. b4 {[%emt 0:00:30]} a5 {[%emt 0:00:30]} 15. b5 {[%emt 0:01:30]} Na7 {[%emt 0:02:30]} 16. b6 {[%emt 0:39:30]} cxb6 {[%emt 0:00:30]} 17. Nxe5 {[%emt 0:04:30]} O-O-O {[%emt 0:01:30]} 18. Re1 {[%emt 0:14:30]} Nc6 {[%emt 0:16:30]} 19. Nxc6 {[%emt 0:14:29]} bxc6 {[%emt 0:00:30]} 20. e5 {[%emt 0:00:00]} Nd7 {[%emt 0:03:30]} 21. f4 {[%emt 0:00:00]} Nc5 {[%emt 0:00:30]} 22. Bxc6 {[%emt 0:07:27]} Nd3 {[%emt 0:15:47]} 23. Re2 {[%emt 0:00:48]} Bxh3 {[%emt 0:00:22]} 24. Ba3 {[%emt 0:02:26]} Bg4 {[%emt 0:00:30]} 25. Bf3 {[%emt 0:00:00]} Bxf3 {[%emt 0:01:52]} 26. Nxf3 {[%emt 0:00:30]} Nc5 {[%emt 0:00:40]} 27. Nd4 {[%emt 0:01:14]} Na4 {[%emt 0:01:51]} 28. Nb5 {[%emt 0:00:53]} Kd7 {[%emt 0:00:56]} 29. Nd6 {[%emt 0:01:44]} Bf8 {[%emt 0:00:40]} 30. c4 {[%emt 0:00:37]} Bxd6 {[%emt 0:01:00]} 31. Bxd6 {[%emt 0:01:05]} Rc8 {[%emt 0:00:05]} 32. Rc1 {[%emt 0:01:05]} h5 {[%emt 0:03:27]} 33. Rd2 {[%emt 0:00:34]} 1/2-1/2

[Event "Turkish Super League 2019"]
[Site "Konya"]
[Date "2019.07.19"]
[Round "3"]
[White "Firat, Burak"]
[Black "Annaberdiyev, Babageldi"]
[Result "1-0"]
[ECO "C18"]
[WhiteElo "2463"]
[BlackElo "2244"]
[Annotator "ChessBase"]
[PlyCount "139"]
[EventDate "2019.07.17"]
[EventType "team-tourn"]
[EventCountry "TUR"]
[SourceTitle "playchess.com"]
[Source "ChessBase"]
[SourceQuality "1"]
[TimeControl "40/5400+30:1800+30"]

1. e4 e6 2. d4 d5 3. Nc3 Bb4 4. e5 c5 5. a3 Bxc3+ 6. bxc3 Ne7 7. h4 Qa5 8. Bd2 c4 9. h5 h6 10. f4 Qa4 11. g4 Nbc6 12. Bh3 Bd7 13. Ne2 O-O-O 14. O-O g6 15. Ng3 Rdg8 16. Kh2 Kb8 17. f5 g5 18. Be3 Nc8 19. Qd2 Nb6 20. fxe6 fxe6 21. Rf6 Qa5 22. Ne2 Bc8 23. Qe1 Qa4 24. Qd2 Qa5 25. Bg2 Ka8 26. Qe1 Qa4 27. Qd2 Qa5 28. Qe1 Qa4 29. Qc1 Re8 30. Qb2 Nd7 31. Rf2 Qa5 32. Raf1 Qc7 33. Kh1 Ref8 34. Qc1 Qd8 35. Kg1 Qe7 36. Rxf8 Rxf8 37. Rxf8 Nxf8 38. a4 Nh7 39. Qa1 Bd7 40. Bc1 b6 41. Ng3 Kb7 42. Ba3 Qf7 43. Qf1 Qxf1+ 44. Kxf1 Nd8 45. a5 Ba4 46. Nf5 Bxc2 47. Nxh6 bxa5 48. Ke1 Kc7 49. Kd2 Bd3 50. Bf3 a6 51. Bd1 Nc6 52. Bc5 Be4 53. Ng8 Nd8 {[%emt 1:58:30]} 54. Ke3 {[%emt 2:20:27]} Nc6 {[%emt 0:07:30]} 55. Ba4 {[%emt 0:01:54]} Bb1 {[%emt 0:01:30]} 56. Nf6 {[%emt 0:00:20]} Bd3 {[%emt 0:01:33]} 57. Kd2 {[%emt 0:00:48]} Bb1 {[%emt 0:01:14]} 58. Bd6+ {[%emt 0:01:45]} Kb7 {[%emt 0:00:15]} 59. Kc1 {[%emt 0:01:58]} Bd3 {[%emt 0:00:03]} 60. h6 {[%emt 0:00:00]} Nd8 {[%emt 0:00:35]} 61. Nxh7 {[%emt 0:01:02]} Bxh7 {[%emt 0:00:02]} 62. Bc2 {[%emt 0:00:10]} Nf7 {[%emt 0:00:25]} 63. Bf8 {[%emt 0:01:16]} Be4 {[%emt 0:00:49]} 64. h7 {[%emt 0:01:05]} a4 {[%emt 0:00:01]} 65. Bxe4 {[%emt 0:01:00]} dxe4 {[%emt 0:00:30]} 66. d5 {[%emt 0:00:00]} Kc8 {[%emt 0:00:03]} 67. dxe6 {[%emt 0:00:19]} Nh8 {[%emt 0:00:30]} 68. Kd2 {[%emt 0:00:00]} Kd8 {[%emt 0:00:00]} 69. Ke3 {[%emt 0:00:33]} Ke8 {[%emt 0:00:00]} 70. Ba3 {[%emt 0:00:00]} 1-0

[Event "Turkish Super League 2019"]
[Site "Konya"]
[Date "2019.07.19"]
[Round "3"]
[White "Soysal, Serkan"]
[Black "Gulbas, Cemil"]
[Result "1-0"]
[ECO "E71"]
[WhiteElo "2431"]
[BlackElo "2380"]
[Annotator "NA"]
[PlyCount "57"]
[EventDate "2019.07.17"]
[EventType "team-tourn"]
[EventCountry "TUR"]
[SourceTitle "playchess.com"]
[Source "ChessBase"]
[SourceQuality "1"]
[TimeControl "40/5400+30:1800+30"]

1. d4 {[%emt 0:10:30]} Nf6 {[%emt 0:37:30]} 2. c4 {[%emt 0:00:30]} g6 {[%emt 0:00:30]} 3. Nc3 {[%emt 0:00:30]} Bg7 {[%emt 0:00:30]} 4. e4 {[%emt 0:00:30]} O-O {[%emt 0:00:30]} 5. Be3 {[%emt 0:00:30]} d6 {[%emt 0:00:30]} 6. h3 {[%emt 0:00:30]} e5 {[%emt 0:00:30]} 7. d5 {[%emt 0:00:30]} a5 {[%emt 0:00:30]} 8. g4 {[%emt 0:00:30]} Na6 {[%emt 0:00:30]} 9. Nge2 {[%emt 0:00:30]} Nd7 {[%emt 0:00:30]} 10. Qd2 {[%emt 0:00:30]} Ndc5 {[%emt 0:00:30]} 11. Ng3 {[%emt 0:00:30]} c6 {[%emt 0:00:30]} 12. Be2 {[%emt 0:00:30]} a4 {[%emt 0:00:30]} 13. h4 {[%emt 0:00:30]} Qa5 {[%emt 0:00:30]} 14. h5 {[%emt 0:00:30]} Re8 {[%emt 0:01:30]} 15. Kf1 {[%emt 0:12:30]} cxd5 {[%emt 0:05:30]} 16. cxd5 {[%emt 0:01:30]} Bd7 {[%emt 0:01:30]} 17. Kg2 {[%emt 0:23:30]} Rac8 {[%emt 0:00:30]} 18. hxg6 {[%emt 0:08:30]} fxg6 {[%emt 0:04:30]} 19. Rab1 {[%emt 0:00:30]} Rf8 {[%emt 0:07:30]} 20. Nb5 {[%emt 0:09:30]} Qb6 {[%emt 0:16:48]} 21. Na3 {[%emt 0:00:30]} Rf7 {[%emt 0:00:41]} 22. Nc4 {[%emt 0:04:30]} Qc7 {[%emt 0:00:32]} 23. b4 {[%emt 0:02:30]} axb3 {[%emt 0:00:30]} 24. axb3 {[%emt 0:00:00]} Bf8 {[%emt 0:06:44]} 25. Rhc1 {[%emt 0:03:13]} Qd8 {[%emt 0:00:56]} 26. Na5 {[%emt 0:03:25]} Be8 {[%emt 0:04:01]} 27. b4 {[%emt 0:01:18]} Na4 {[%emt 0:00:47]} 28. Nxb7 {[%emt 0:04:52]} Rxb7 {[%emt 0:00:22]} 29. Rxc8 {[%emt 0:02:50]} 1-0